Cogmind - Beta 17 @@@ ROGUE MODE // 2026.08.06 @ 18:05:48 Player: Afro Result: Destroyed by G-50 Soldier with Heavy Laser Performance ------------- Evolutions (5) 2500 Regions Visited (10) 2000 Robots Destroyed (176) 880 Value Destroyed (7112) 7112 Prototype IDs (14) 280 Alien Tech Used (0) 0 Bonus (2381) 2381 TOTAL SCORE: 15153 Bonus ------- High Alert Combat Kills 837 Follower Combat Kills 751 Registered with UFD 300 Met Optimus in HQ 500 Friendly Fire -7 Cogmind --------- Core Integrity 0/1000 Matter 216/300 Energy 34/100 System Corruption 7% Temperature Cool (9) Movement Core (50) Location -5/Factory Parts ------- > --- POWER (2) -------- (None) > --- PROPULSION (4) --- (None) > --- UTILITY (7) ------ (None) > --- WEAPON (4) ------- (None) > --- INVENTORY (5) ---- Improved Heat Sink Layered Medium Armor Plating Compact Ion Cannon Long-range Missile Launcher DRS Beacon (Ready) Peak State ------------ > --- POWER ------------ Reinforced Fission Core Reinforced Fission Core > --- PROPULSION ------- Heavy Treads Carbon-fiber Leg Flexi-carbon Leg > --- UTILITY ---------- Advanced Heat Sink Compact Battery Matter Compressor Improved Kinecellerator Improved Weapon Cycler Improved Weapon Cycler Hacking Suite > --- WEAPON ----------- Wave Gun Cooled Plasma Rifle Compact Ion Cannon KE Penetrator > --- INVENTORY -------- Reinforced Fission Core Reinforced Fission Core Compact Ion Cannon Long-range Missile Launcher DRS Beacon [Rating: 93] Favorites ----------- Power Reinforced Fission Core Engine Ion Engine Power Core Reinforced Fission Core Reactor Cold Fusion Reactor Propulsion Light Treads Treads Light Treads Leg Carbon-fiber Leg Wheel Armored Huge Wheel Hover Unit Linear Gravjet Utility Large Storage Unit Device Advanced Heat Sink Storage Large Storage Unit Processor Improved Corruption Screen Hackware Hacking Suite Protection Hardened Medium Armor Plating Weapon Shotgun Energy Gun Advanced Variable Charge Gun Energy Cannon Compact Ion Cannon Ballistic Gun Shotgun Ballistic Cannon Improved Light Cannon Launcher Improved Grenade Launcher Special Weapon Mining Laser Impact Weapon Great Maul Slashing Weapon Power Sword Build | -11 -10 -10 -9 -9 -6 -6 -6 -6 -6 -5 ------- Run | Yrd Mat Sub Rec Scr Fac Ext Cet Arc Hub Fac Slots Evolved 10 | . . . . . 8 . . . . 2 Power 1 | . . . . . . . . . . 1 Propulsion 2 | . . . . . 2 . . . . . Utility 5 | . . . . . 4 . . . . 1 Weapon 2 | . . . . . 2 . . . . . Parts Attached 176 | 7 9 4 6 6 22 38 14 3 3 64 Power 16 | 1 1 . 1 1 1 2 1 . 1 7 Engine 7 | 1 . . 1 1 . 2 1 . . 1 Core 8 | . 1 . . . 1 . . . . 6 Reactor 1 | . . . . . . . . . 1 . Propulsion 50 | 2 . 1 1 2 3 13 4 3 1 20 Treads 9 | 2 . . 1 . . 1 4 . . 1 Leg 37 | . . 1 . 1 2 12 . 3 1 17 Wheel 2 | . . . . 1 1 . . . . . Hover 2 | . . . . . . . . . . 2 Flight . | . . . . . . . . . . . Utility 55 | 2 4 1 2 1 7 9 4 . 1 24 Device 23 | 1 . . . . 2 4 4 . . 12 Storage 5 | 1 2 . . . . . . . . 2 Processor 2 | . . . . . . . . . . 2 Hackware 2 | . . . . . . . . . . 2 Protection 23 | . 2 1 2 1 5 5 . . 1 6 Artifact . | . . . . . . . . . . . Weapon 55 | 2 4 2 2 2 11 14 5 . . 13 Energy Gun 13 | . . . . 1 3 2 2 . . 5 Energy Cannon 4 | . . . . . . 1 . . . 3 Ballistic Gun 19 | 2 3 1 1 . 4 4 2 . . 2 Ballistic Cannon 7 | . . . 1 1 1 1 1 . . 2 Launcher 3 | . . 1 . . 1 . . . . 1 Special Weapon 1 | . 1 . . . . . . . . . Impact Weapon 1 | . . . . . 1 . . . . . Slashing Weapon 7 | . . . . . 1 6 . . . . Piercing Weapon . | . . . . . . . . . . . Special Melee Weapon . | . . . . . . . . . . . Unidentified Prototypes 8 | . . . . . 1 . 3 . 1 3 Parts Lost 69 | . . 3 2 . 3 10 17 8 . 26 Power 3 | . . . 1 . . . 1 1 . . Propulsion 23 | . . 1 1 . 1 2 6 3 . 9 Utility 28 | . . 1 . . 2 5 4 4 . 12 Weapon 15 | . . 1 . . . 3 6 . . 5 Highest Loss Streak 16 | . . 2 1 . 1 4 16 8 . 6 To Critical Strikes 2 | . . . . . . . 2 . . . Average Backups 10 | 3 12 14 14 13 13 13 7 10 4 3 Power 1 | . 1 1 2 1 2 2 1 3 2 1 Propulsion 1 | 1 2 1 1 . 3 3 1 2 . . Utility 4 | . 4 7 8 7 3 2 . 1 1 . Weapon 3 | . 3 3 3 3 3 5 2 3 1 1 Tool/Special . | . . . . . . . . . . . Unused Backups 45 | . 5 . 1 8 8 8 . 6 3 6 Power 13 | . 1 . 1 1 3 2 . 2 1 2 Propulsion 10 | . 1 . . 1 3 4 . 1 . . Utility 9 | . . . . 5 . 1 . 1 . 2 Weapon 13 | . 3 . . 1 2 1 . 2 2 2 Tool/Special . | . . . . . . . . . . . Average Slot Usage (%) 91 | . 100 99 99 86 80 93 89 88 70 88 Engine 6 | . 6 . 13 13 3 4 5 5 . . Core 4 | . 7 14 . . 2 1 . . . 9 Treads 8 | . 28 15 13 1 . . 11 9 . 2 Leg 9 | . . 12 14 1 2 24 8 11 23 13 Wheel 3 | . . . . 12 11 . . . . . Device 8 | . 3 11 . . 8 14 29 29 13 15 Storage 11 | . 14 14 14 14 6 6 6 4 . 10 Protection 10 | . 10 2 14 14 17 14 1 . . 5 Energy Gun 2 | . . . . . 6 3 9 13 13 5 Energy Cannon 1 | . . . . . . 2 . . . 5 Ballistic Gun 12 | . 27 27 15 13 5 2 6 6 6 5 Ballistic Cannon 5 | . . . 12 14 6 1 . . . 1 Slashing Weapon 1 | . . . . . 2 11 5 6 6 1 Peak Build Rating 93 | 7 14 14 14 28 72 72 77 78 65 93 Average Rating 40 | 5 11 13 12 19 65 65 69 72 59 79 On Entrance 36 | . 7 14 14 12 28 68 68 77 50 65 Avg Prop Armor Cover (%) 6 | . . 6 5 7 4 6 4 5 . 9 Naked Turns 2 | . . . . . . . . . . 2 Heaviest Build 104 | 12 38 38 39 45 69 77 72 65 40 104 Greatest Support 80 | 40 40 40 20 28 48 77 80 60 65 70 Greatest Overweight (x) 4 | 1 . 1 3 2 3 3 2 1 . 4 Average Overweight (x) . | . . . 1 1 1 . . . . . Largest Inventory Capacity 15 | 8 15 15 15 15 15 15 15 15 5 5 Average Capacity 12 | 7 12 15 15 15 15 15 15 12 5 5 Most Carried 15 | 6 15 15 15 15 15 15 15 15 5 5 Average Carried 11 | 3 12 14 14 14 14 14 7 10 4 4 Final Capacity 15 | 8 15 15 15 15 15 15 15 5 5 5 Final Carried 15 | 6 15 15 15 15 15 15 13 5 5 5 Scrap Suit Usage (%) 4 | . . . . . 25 27 . . . . Parts Cannibalized 18 | . . . . . 2 16 . . . . Class Distribution -------------------- 36% | Commander-Mutant 23% | Mutant 16% | Scavenger-Tank 7% | Scavenger-Gunner 6% | Tank 5% | Scrapper 3% | Commander-Gunner Dominant Class ---------------- Mutant | -10/Materials Mutant | -10/Subcaves Commander-Mutant | -9/Recycling Commander-Mutant | -9/Scraptown Scrapper | -6/Factory Commander-Mutant | -6/Extension Scavenger-Gunner | -6/Cetus Scavenger-Gunner | -6/Archives Scavenger-Gunner | -6/Hub_04(d) Scavenger-Tank | -5/Factory Resources | -11 -10 -10 -9 -9 -6 -6 -6 -6 -6 -5 ----------- Run | Yrd Mat Sub Rec Scr Fac Ext Cet Arc Hub Fac Matter Collected 5820 | 314 399 150 299 32 1049 1099 315 7 78 2078 Remotely 652 | . . . . . . . . . . 652 Salvage Created 7857 | 134 408 109 288 . 1261 2471 475 271 . 2440 Parts 344 | 7 29 5 21 . 63 82 15 14 . 108 Haulers Intercepted 2 | . 1 . . . . . . . . 1 Recyclers Shooed 6 | . 1 . . . . . . . . 5 Parts Field Recycled . | . . . . . . . . . . . Retrieved Matter . | . . . . . . . . . . . Parts Self-Destructed 6 | . . 6 . . . . . . . . Prevented . | . . . . . . . . . . . Parts Restored . | . . . . . . . . . . . Kills | -11 -10 -10 -9 -9 -6 -6 -6 -6 -6 -5 ------- Run | Yrd Mat Sub Rec Scr Fac Ext Cet Arc Hub Fac Combat Hostiles Destroyed 131 | . 12 5 7 . 22 30 7 3 . 45 Melee 15 | . . . . . . 15 . . . . Guns 74 | . 12 5 4 . 10 6 5 3 . 29 Cannons 28 | . . . 3 . 9 4 1 . . 11 AOE 11 | . . . . . 3 4 . . . 4 Classes Destroyed 20 | 2 5 2 3 . 4 4 . . . . Worker 7 | . 1 . . . 5 1 . . . . Builder 5 | . . . . . 3 . . . . 2 Tunneler 4 | 2 . . . . 2 . . . . . Hauler 2 | . 1 . . . . . . . . 1 Recycler 9 | 1 . . . . . 6 . . . 2 Mechanic 2 | . . . . . . 1 . . . 1 Operator 3 | . . . . . 1 1 . 1 . . Turret 2 | . . 2 . . . . . . . . Watcher 6 | . 3 . . . 1 1 1 . . . Swarmer 28 | . 6 3 . . 10 . . . . 9 Grunt 56 | . 6 . 1 . 7 15 3 . . 24 Brawler 1 | . . . . . . 1 . . . . Duelist 4 | . . . . . . 2 . . . 2 Protector 3 | . . . 1 . 1 1 . . . . Sentry 16 | . . . 4 . 4 5 . 3 . . Demolisher 1 | . . . . . 1 . . . . . Hunter 11 | . . . . . 2 4 . . . 5 Programmer 9 | . . . 1 . 2 1 . . . 5 Behemoth 1 | . . . . . . 1 . . . . Cetus Guard 4 | . . . . . . . 4 . . . Subdweller 2 | . . 2 . . . . . . . . Best Kill Streak 11 | 2 4 2 3 . 10 11 3 1 . 7 Combat Bots Only 9 | . 4 2 3 . 7 9 3 1 . 7 Max Kills in Single Turn 8 | 1 1 1 2 . 8 3 2 1 . 5 Gunslinging 2 | . . . . . . . 1 . . 2 Exploded 4 | . . . . . 2 3 . . . 4 Melee 1 | . . . . . . 1 . . . . Uniques/NPCs Destroyed . | . . . . . . . . . . . Combat | -11 -10 -10 -9 -9 -6 -6 -6 -6 -6 -5 -------- Run | Yrd Mat Sub Rec Scr Fac Ext Cet Arc Hub Fac Hostile Shots Fired 1264 | . 56 117 16 . 127 362 156 36 . 394 Missed 370 | . 21 60 3 . 31 127 31 9 . 88 Hits 894 | . 35 57 13 . 96 235 125 27 . 306 Melee 5 | . . . . . . . . . . 5 Projectile 889 | . 35 57 13 . 96 235 125 27 . 301 AOE 3 | . . 3 . . . . . . . . Critical Strikes 26 | . . . 1 . 2 6 8 1 . 8 Actively Blocked 1 | . . . . . . 1 . . . . Damage Taken 15893 | . 340 606 183 . 1496 3157 3401 659 . 6051 Core 1936 | . 69 37 . . 107 287 382 51 . 1003 Absorbed by Shields 57 | . . . 26 . 31 . . . . . Reduced by Siege Mode 65 | . . . . . . . . . . 65 Redirected to Shielding 260 | . . . . . 62 95 103 . . . Ignored by Resistances 84 | . . . . . . 84 . . . . Regen/Repaired (Parts) 144 | . . . . . 13 131 . . . . Core Remaining (%) 53 | 100 . . . 57 . . . . 2 . Volleys Fired 340 | 11 44 23 9 . 45 28 42 12 . 126 Largest 4 | 2 2 2 2 . 3 4 4 3 . 4 Hottest 296 | 40 100 46 56 . 149 274 195 195 . 296 Shots Fired 839 | 22 87 35 18 . 126 90 89 30 . 342 Gun 597 | 22 86 24 13 . 82 43 76 30 . 221 Cannon 219 | . . . 5 . 40 41 13 . . 120 Launcher 22 | . . 11 . . 4 6 . . . 1 Special 1 | . 1 . . . . . . . . . Kinetic 470 | 22 86 24 18 . 81 46 39 12 . 142 Thermal 347 | . 1 . . . 41 38 50 18 . 199 Explosive 22 | . . 11 . . 4 6 . . . 1 Electromagnetic . | . . . . . . . . . . . Robot Hit Streak 23 | 4 7 19 5 . 12 7 23 8 . 22 Robot Miss Streak 7 | 2 6 3 1 . 3 7 5 2 . 5 Penetration Max 1 | . . . . . . 1 . . . 1 Secondary Targets 9 | . 1 . . . . . 2 . . 6 Max Gunslinging Chain 2 | . 1 . . . . . 1 . . 2 Shots Hit Robots 608 | 13 55 17 15 . 78 123 70 25 . 212 Core Hits 359 | 5 27 17 9 . 66 93 30 10 . 102 Critical Kills 10 | . . . 1 . 2 2 1 1 . 3 Critical Parts Destroyed 5 | . . . . . 1 1 2 . . 1 Critical Strikes 40 | . . . 1 . 7 15 4 2 . 11 Burn 5 | . . . . . 2 1 1 . . 1 Meltdown 2 | . . . . . . . 1 . . 1 Destroy 9 | . . . 1 . 1 1 2 1 . 3 Blast 8 | . . . . . 2 . . . . 6 Smash 4 | . . . . . 2 2 . . . . Sever 12 | . . . . . . 11 . 1 . . Melee Attacks 114 | . . . . . 17 90 1 5 . 1 Impact 13 | . . . . . 7 6 . . . . Slashing 101 | . . . . . 10 84 1 5 . 1 Piercing . | . . . . . . . . . . . Sneak Attacks 13 | . . . . . 5 6 . 1 . 1 Combat Hostiles . | . . . . . . . . . . . Follow-up Attacks 23 | . . . . . . 23 . . . . Damage Inflicted 19113 | 133 840 447 350 . 2869 5215 1750 814 8 6687 Guns 8943 | 133 840 266 215 . 937 678 1416 637 . 3821 Cannons 4171 | . . . 116 . 688 746 334 . . 2287 Explosions 2235 | . . 181 . . 759 869 . . . 426 Melee 3662 | . . . . . 485 2922 . 177 . 78 Ramming 102 | . . . 19 . . . . . 8 75 Kinetic 7171 | 133 840 266 331 . 1068 771 709 264 . 2789 Thermal 6005 | . . . . . 619 653 1041 373 . 3319 Explosive 1784 | . . 181 . . 308 869 . . . 426 Electromagnetic 389 | . . . . . 389 . . . . . Impact 509 | . . . . . 386 123 . . . . Slashing 3153 | . . . . . 99 2799 . 177 . 78 Piercing . | . . . . . . . . . . . Highest Corruption 7 | . . . . . 1 3 3 3 3 7 Average Corruption 2 | . . . . . 1 1 3 3 3 6 Corruption Purged . | . . . . . . . . . . . Corruption Blocked . | . . . . . . . . . . . Effects 63 | . . . . . 7 17 9 3 3 24 Message Errors 13 | . . . . . . 5 2 2 . 4 Matter Fused 24 | . . . . . 2 9 2 . 2 9 Heat Flow Errors 11 | . . . . . 3 . 1 . 1 6 Energy Discharges 3 | . . . . . . 1 . . . 2 Parts Rejected 1 | . . . . . . . . . . 1 Parts Fused 1 | . . . . . . . 1 . . . Data Loss (minor) 6 | . . . . . 2 1 2 1 . . Data Loss (major) 2 | . . . . . . 1 . . . 1 Alerts 1 | . . . . . . . 1 . . . Weapon Failures 1 | . . . . . . . . . . 1 Overload Shots 1 | . . . . . . . 1 . . . Overflow Damage 660 | . . 2 9 . 147 321 . 52 . 129 Projectiles 111 | . . . 9 . 8 25 . . . 69 Explosions 35 | . . 2 . . 11 . . . . 22 Melee 514 | . . . . . 128 296 . 52 . 38 Knockbacks 20 | . . . 1 . 5 2 . . . 12 Impact 3 | . . . 1 . . . . . . 2 Kinetic 17 | . . . . . 5 2 . . . 10 Secondary . | . . . . . . . . . . . Self-Inflicted Damage 361 | . . 97 . . 140 . . . . 124 Shots 8 | . . 4 . . 3 . . . . 1 Rammed 10 | . . . 3 . . . . . . 7 Targets Rammed 18 | . . . 3 . . . . . 1 14 Kicked 8 | . . . . . . . . . 1 7 Crushed . | . . . . . . . . . . . Highest Temperature 744 | . 30 1 12 . 515 318 96 9 217 744 Average Temperature 183 | . 16 1 5 . 159 70 44 9 112 239 Received Heat Transfer 3848 | . 102 156 61 . 294 1217 576 126 . 1316 Effects 85 | . . . . . 12 . . . . 73 Shutdowns 27 | . . . . . 2 . . . . 25 Energy Bleed 13 | . . . . . 4 . . . . 9 Interference 19 | . . . . . 4 . . . . 15 Matter Decay 15 | . . . . . 1 . . . . 14 Short Circuit 3 | . . . . . . . . . . 3 Damage (minor) 5 | . . . . . 1 . . . . 4 Damage (major) 1 | . . . . . . . . . . 1 Damage (core) 2 | . . . . . . . . . . 2 Siege Activations 3 | . . . . . . . . . . 3 Total Turns 64 | . . . . . . . . . . 64 Longest Duration 42 | . . . . . . . . . . 42 Martial Activations . | . . . . . . . . . . . Shielding Activations . | . . . . . . . . . . . Robots Disrupted . | . . . . . . . . . . . Combat Hostiles . | . . . . . . . . . . . Robots Corrupted 2 | . . . . . 1 1 . . . . Combat Hostiles 1 | . . . . . . 1 . . . . Parts Fried 7 | . . . . . 7 . . . . . Impact Corruptions 5 | . . . . . 4 1 . . . . Robots Melted 2 | . . . . . . . 1 . . 1 Combat Hostiles 2 | . . . . . . . 1 . . 1 Parts Melted 29 | . . . . . . 6 3 . . 20 Heat Transferred 10271 | . . . . . 1364 1211 1780 481 . 5435 Parts Sabotaged 2 | . . . . . . . . . . 2 Parts Stolen . | . . . . . . . . . . . Parts Stripped . | . . . . . . . . . . . Power Chain Reactions 2 | . . . . . 2 . . . . . Alert | -11 -10 -10 -9 -9 -6 -6 -6 -6 -6 -5 ------- Run | Yrd Mat Sub Rec Scr Fac Ext Cet Arc Hub Fac Maximum Alert Level 4 | . . . . . 1 2 1 . . 4 Low Security (%) 62 | 100 100 . 100 . 78 34 69 100 100 12 Level 1 7 | . . . . . 21 8 30 . . 8 Level 2 20 | . . . . . . 57 . . . 47 Level 3 8 | . . . . . . . . . . 29 Level 4 . | . . . . . . . . . . 2 Level 5 . | . . . . . . . . . . . High Security . | . . . . . . . . . . . Max Security . | . . . . . . . . . . . Peak Influence 1157 | 5 139 . 130 . 319 668 354 62 24 1157 Initial 354 | . . . 103 . . 156 354 61 . . Average 255 | . 49 . 29 . 88 405 193 31 3 585 Influence Increases 5260 | 15 374 280 244 . 778 1216 224 101 28 2000 Destroy 0b10 Robot/C 2940 | . 240 100 160 . 440 700 140 60 . 1100 Destroy 0b10 Robot/NC 200 | 15 25 . 5 . 50 60 5 5 . 35 Destroy Leader 446 | . 38 . . . 102 102 10 . . 194 Allied During Kill 484 | . . . 42 . . 314 . . . 128 Successful Hack 208 | . 69 . 21 . 17 7 19 . 28 47 Disable Machine 210 | . . . . . 45 15 30 30 . 90 Anti-Garrison Action 150 | . . . . . . . . . . 150 Destroy Structure 217 | . 2 . 16 . 34 18 5 6 . 136 Partial Spotted 30 | . . . . . 15 . . . . 15 Lose Combat Pursuer 375 | . . 180 . . 75 . 15 . . 105 Influence Decreases 4145 | 15 362 76 434 26 459 901 704 255 28 885 Entered New Map 682 | . . 7 113 26 . 163 280 93 . . Time Decay 2560 | 15 362 49 300 . 409 498 254 82 28 563 Lost Part 662 | . . 20 20 . 30 100 170 80 . 242 Lost Ally 241 | . . . 1 . 20 140 . . . 80 Squads Dispatched 33 | . . . . . 7 8 1 . . 17 Investigation 10 | . . . . . 2 3 1 . . 4 Extermination 7 | . . . . . 3 . . . . 4 Reinforcement 10 | . . . . . 2 3 . . . 5 Assault 5 | . . . . . . 2 . . . 3 Garrison 1 | . . . . . . . . . . 1 Intercept . | . . . . . . . . . . . Searches Triggered . | . . . . . . . . . . . Construction Impeded 4 | . . . . . 1 2 . . . 1 Haulers Reinforced 1 | . . . . . . . . . . 1 Active Scanning Responses . | . . . . . . . . . . . Cargo Convoy Interrupts . | . . . . . . . . . . . Stealth | -11 -10 -10 -9 -9 -6 -6 -6 -6 -6 -5 --------- Run | Yrd Mat Sub Rec Scr Fac Ext Cet Arc Hub Fac Distress Signals 8 | . . . . . 1 2 2 1 . 2 Communications Jammed . | . . . . . . . . . . . Distress Signals . | . . . . . . . . . . . Times Spotted 226 | . 22 10 8 . 32 40 8 7 3 96 Peak Tracking Total 8 | . 4 2 3 . 4 6 5 2 3 8 Tactical Retreats 12 | . . 4 . . 3 . 1 . . 4 Traps | -11 -10 -10 -9 -9 -6 -6 -6 -6 -6 -5 ------- Run | Yrd Mat Sub Rec Scr Fac Ext Cet Arc Hub Fac Traps Triggered 3 | . . . . . 2 1 . . . . Indirectly . | . . . . . . . . . . . Trap Hack Attempts . | . . . . . . . . . . . Triggered . | . . . . . . . . . . . Disarmed . | . . . . . . . . . . . Reprogrammed . | . . . . . . . . . . . Reused . | . . . . . . . . . . . Traps Extracted . | . . . . . . . . . . . Installed . | . . . . . . . . . . . Triggered . | . . . . . . . . . . . Machines | -11 -10 -10 -9 -9 -6 -6 -6 -6 -6 -5 ---------- Run | Yrd Mat Sub Rec Scr Fac Ext Cet Arc Hub Fac Machines Disabled 19 | . . 2 . . 3 2 3 2 . 7 Max in Single Turn 3 | . . 2 . . 3 1 2 1 . 1 Garrison Access 1 | . . . . . . . . . . 1 Machines Repaired . | . . . . . . . . . . . Machines Dismantled . | . . . . . . . . . . . Machines Sabotaged . | . . . . . . . . . . . Overloaded Fab Kills . | . . . . . . . . . . . Hacking | -11 -10 -10 -9 -9 -6 -6 -6 -6 -6 -5 --------- Run | Yrd Mat Sub Rec Scr Fac Ext Cet Arc Hub Fac Machines Accessed 50 | . 8 . 9 8 4 5 3 . 3 10 Terminals 31 | . 7 . 6 . 2 5 3 . 3 5 Fabricators . | . . . . . . . . . . . Repair Stations 1 | . . . . . 1 . . . . . Recycling Units 6 | . 1 . 1 . 1 . . . . 3 Scanalyzers 1 | . . . . . . . . . . 1 Garrison Access 1 | . . . . . . . . . . 1 Total Hacks 179 | . 25 . 46 46 12 11 8 . 9 22 Successful 127 | . 15 . 38 46 4 2 3 . 7 12 Failed 50 | . 9 . 8 . 8 9 5 . 2 9 Catastrophic 9 | . 1 . . . 2 3 1 . . 2 Database Lockouts 2 | . 1 . . . . . . . . 1 Manual 91 | . 26 . 26 . 7 2 2 1 9 18 Terminals 87 | . 22 . 20 . 5 11 8 . 9 12 Fabricators . | . . . . . . . . . . . Repair Stations 4 | . . . . . 4 . . . . . Recycling Units 14 | . 3 . 2 . 3 . . . . 6 Scanalyzers 2 | . . . . . . . . . . 2 Garrison Access 2 | . . . . . . . . . . 2 Terminal Hacks 79 | . 2 . 25 46 1 2 3 . . . Record 72 | . . . 24 45 . . 3 . . . Robot Analysis 3 | . 2 . 1 . . . . . . . Open Door 3 | . . . . . 1 2 . . . . Proto ID Catalog 1 | . . . . 1 . . . . . . Fabricator Hacks . | . . . . . . . . . . . Repair Station Hacks 1 | . . . . . 1 . . . . . Scan Component 1 | . . . . . 1 . . . . . Recycling Unit Hacks . | . . . . . . . . . . . Scanalyzer 1 | . . . . . . . . . . 1 Retrieve Study 1 | . . . . . . . . . . 1 Garrison Access Hacks . | . . . . . . . . . . . Unauthorized Hacks 45 | . 13 . 13 . 2 . . . 6 11 Terminals 35 | . 11 . 11 . 2 . . . 6 5 Botnet 15 | . 5 . 5 . 1 . . . 3 1 Skim 20 | . 6 . 6 . 1 . . . 3 4 Fabricators . | . . . . . . . . . . . Repair Stations . | . . . . . . . . . . . Recycling Units 10 | . 2 . 2 . . . . . . 6 Reject 3 | . 1 . 1 . . . . . . 1 Recyclers 1 | . . . . . . . . . . 1 Mask 3 | . 1 . 1 . . . . . . 1 Fedlink 2 | . . . . . . . . . . 2 Scrapoids 1 | . . . . . . . . . . 1 Scanalyzers . | . . . . . . . . . . . Garrison Access . | . . . . . . . . . . . Data Cores Recovered . | . . . . . . . . . . . Used . | . . . . . . . . . . . Hacking Detections 34 | . 7 . 7 . 4 5 3 . 3 5 Full Trace Events 6 | . . . . . 2 2 1 . . 1 Feedback Events . | . . . . . . . . . . . Feedback Blocked . | . . . . . . . . . . . Robot Schematics Acquired . | . . . . . . . . . . . Robots Built . | . . . . . . . . . . . Authchips . | . . . . . . . . . . . Time . | . . . . . . . . . . . Total Robot Build Rating . | . . . . . . . . . . . Part Schematics Acquired . | . . . . . . . . . . . Parts Built . | . . . . . . . . . . . Authchips . | . . . . . . . . . . . Time . | . . . . . . . . . . . Total Part Build Rating . | . . . . . . . . . . . Part Studies Acquired 1 | . . . . . . . . . . 1 Parts Repaired . | . . . . . . . . . . . Time . | . . . . . . . . . . . Parts Recycled . | . . . . . . . . . . . Recycled Matter . | . . . . . . . . . . . Retrieved Matter . | . . . . . . . . . . . Retrieved Components . | . . . . . . . . . . . Parts Scanalyzed . | . . . . . . . . . . . Part Schematics Acquired . | . . . . . . . . . . . Parts Damaged . | . . . . . . . . . . . Bothacking | -11 -10 -10 -9 -9 -6 -6 -6 -6 -6 -5 ------------ Run | Yrd Mat Sub Rec Scr Fac Ext Cet Arc Hub Fac Used RIF Installer . | . . . . . . . . . . . Robots Hacked . | . . . . . . . . . . . Non-combat . | . . . . . . . . . . . Combat . | . . . . . . . . . . . Robot Hacks Applied . | . . . . . . . . . . . Relay Couplers Released 3 | . . . . . . . . . . 3 Machine Destruction 3 | . . . . . . . . . . 3 Fabnet Peak Effective % . | . . . . . . . . . . . Robots Rewired 19 | . . . 12 . . 7 . . . . Allies Hacked . | . . . . . . . . . . . Hacks Repelled . | . . . . . . . . . . . Allies | -11 -10 -10 -9 -9 -6 -6 -6 -6 -6 -5 -------- Run | Yrd Mat Sub Rec Scr Fac Ext Cet Arc Hub Fac Total Allies 25 | . . . 12 . . 8 . . . 5 Largest Group 12 | . . . 12 11 8 8 . . . 5 Highest-Rated Group 235 | . . . 175 170 135 225 . . . 235 Highest-Rated Ally 47 | . . . 34 34 34 31 . . . 47 Initial UFD Resources 28 | . . . . . 24 24 24 24 24 28 Total Orders 4 | . . . 1 . . . 3 . . . STAY 1 | . . . . . . . 1 . . . AID 1 | . . . 1 . . . . . . . EXPLORE 2 | . . . . . . . 2 . . . Ally Attacks 198 | . . . 17 . 4 107 . . . 70 Total Damage 3420 | . . . 187 . 39 1639 . . . 1555 Kills 20 | . . . 2 . . 7 . . . 11 Allies Corrupted . | . . . . . . . . . . . Allies Melted . | . . . . . . . . . . . Intel | -11 -10 -10 -9 -9 -6 -6 -6 -6 -6 -5 ------- Run | Yrd Mat Sub Rec Scr Fac Ext Cet Arc Hub Fac Active Infowar (turns) 1597 | 95 428 1074 . . . . . . . . Seismic 1597 | 95 428 1074 . . . . . . . . Robot Analysis Total 3 | . 2 . 1 . . . . . . . Derelict Logs Recovered 1 | . . . . 1 . . . . . . Drone Launches 2 | . . . . . . . 2 . . . Drone Recoveries 2 | . . . . . . . 2 . . . Exploration | -11 -10 -10 -9 -9 -6 -6 -6 -6 -6 -5 ------------- Run | Yrd Mat Sub Rec Scr Fac Ext Cet Arc Hub Fac Turns Passed 15401 | 190 1871 1292 2325 2678 1378 1321 555 194 197 3400 Spaces Moved 8113 | 93 946 510 841 2169 1046 603 170 58 158 1519 Core 181 | 7 . . . . . . . . . 174 Treads 3073 | 86 946 510 840 13 . . 153 29 . 496 Legs 1737 | . . . 1 85 47 558 17 29 158 842 Wheels 3115 | . . . . 2071 999 45 . . . . Hover 7 | . . . . . . . . . . 7 Flight . | . . . . . . . . . . . Fastest Speed 36 | 50 160 160 240 115 85 80 160 120 120 36 Average Speed 158 | 154 160 232 240 121 100 142 214 187 120 182 Slowest Speed 400 | 160 160 240 330 260 170 265 320 240 120 400 Overloaded Moves . | . . . . . . . . . . . Propulsion Burnouts . | . . . . . . . . . . . Robots Hopped . | . . . . . . . . . . . Potential Cave-ins . | . . . . . . . . . . . Cave-ins Triggered . | . . . . . . . . . . . Exploration Rate (%) 51 | 5 99 36 97 93 16 57 68 57 13 30 Regions Visited 10 Branch Regions 7 Pre-discovered Areas 3 | . . . 2 . . . . . . 1 Known Exits Taken 1 | . 1 . . . . . . . . . Unknown Exits Taken 9 | 1 . 1 1 1 1 1 1 1 1 . Scrap Searched 10 | . . . . 10 . . . . . . Spaces Dug 14 | . 1 . . . 11 . . 1 . 1 Terrain Destroyed 164 | . 1 30 . . 33 26 5 6 . 63 Melee 12 | . . . . . 11 . . 1 . . Projectile 73 | . 1 . . . 12 5 5 5 . 45 AOE 79 | . . 30 . . 10 21 . . . 18 Terrain Rammed . | . . . . . . . . . . . Walls Destroyed . | . . . . . . . . . . . Machines Disabled . | . . . . . . . . . . . Actions | -11 -10 -10 -9 -9 -6 -6 -6 -6 -6 -5 --------- Run | Yrd Mat Sub Rec Scr Fac Ext Cet Arc Hub Fac Total 9940 | 116 1219 575 1129 2223 1259 919 287 112 167 1934 Wait 637 | . 188 27 64 18 87 37 47 33 . 136 Move 8103 | 92 945 509 840 2168 1045 602 169 57 157 1519 Hop . | . . . . . . . . . . . Pick Up 115 | 6 18 2 2 12 20 24 10 2 3 16 Fast Attach 85 | 7 3 . 3 3 4 21 3 . 3 38 Attach 48 | . . 3 1 . 11 8 13 3 . 9 Detach 3 | . . . . . . 1 . . . 2 Swap 74 | . 6 11 3 3 13 14 2 . . 22 Drop 154 | . 15 . 6 19 17 43 . . 3 51 Fire 340 | 11 44 23 9 . 45 28 42 12 . 126 Melee 85 | . . . . . 17 61 1 5 . 1 Ram 5 | . . . . . . . . . . 5 Kick 8 | . . . . . . . . . 1 7 Crush 5 | . . . 3 . . . . . . 2 Escape Stasis . | . . . . . . . . . . . Rewire 278 | . . . 198 . . 80 . . . . Trap . | . . . . . . . . . . . Miscellaneous . | . . . . . . . . . . . Route ------- -11/Scrapyard -10/Materials (discovered 5 exits: [*Mat x3] / [*Min] / *Sub) -10/Subcaves -9/Recycling (discovered 2 exits: [*Fac] / *Scr) -9/Scraptown (discovered 2 exits: *Fac x2) -6/Factory -6/Extension (discovered 2 exits: *Fac / *Cet) -6/Cetus -6/Archives -6/Hub_04(d) -5/Factory History --------- Turn | Location | Event 10 | -11/Scrapyard | Discovered new exit (range 15) 191 | -11/Scrapyard | Entered Materials 305 | -10/Materials | Build established: Mutant 654 | -10/Materials | Discovered new exit (range 13) 1121 | -10/Materials | Discovered new exit (range 7) 1297 | -10/Materials | Central database locked down 1643 | -10/Materials | Discovered new exit (range 10) 1876 | -10/Materials | Discovered new exit (range 15) 1961 | -10/Materials | Identified exit to Subcaves 2012 | -10/Materials | Learned Storage stockpile data 2062 | -10/Materials | Entered Subcaves 2633 | -10/Subcaves | A swath of the cavern ceiling suddenly collapsed 3243 | -10/Subcaves | Discovered new exit (range 12) 3354 | -10/Subcaves | Entered Recycling 3743 | -9/Recycling | Build established: Commander-Mutant 3873 | -9/Recycling | Scanned before Scraplab entrance 5159 | -9/Recycling | Learned Storage trap positions 5161 | -9/Recycling | Discovered new exit (range 16) 5356 | -9/Recycling | Learned Materials stockpile data 5403 | -9/Recycling | Learned location of Zion (-6) 5438 | -9/Recycling | Learned Storage trap positions 5462 | -9/Recycling | Learned Storage emergency access door positions 5494 | -9/Recycling | Learned Storage trap positions 5536 | -9/Recycling | Learned Materials repair station intel 5587 | -9/Recycling | Learned 2 Storage zone layouts 5663 | -9/Recycling | Discovered new exit (range 2) 5679 | -9/Recycling | Entered Scraptown 5679 | -9/Scraptown | Accompanied by 11 allies 6061 | -9/Scraptown | Discovered new exit (range 3) 6102 | -9/Scraptown | Scanned Subdweller tech in exchange for log data 6105 | -9/Scraptown | Learned Factory interactive machine intel 6235 | -9/Scraptown | Visited Red Mages 6399 | -9/Scraptown | Visited Bundlers 6694 | -9/Scraptown | Visited Cave Peace 6792 | -9/Scraptown | Visited Comm Corps 6896 | -9/Scraptown | Visited IN-MT5's Study 6908 | -9/Scraptown | Visited Shadow of the Wyrm 7078 | -9/Scraptown | Visited UFD Registry 7078 | -9/Scraptown | Registered with UFD as "Smoothbot" 7106 | -9/Scraptown | Visited Curators Association 7137 | -9/Scraptown | Visited Science Guys 7176 | -9/Scraptown | Visited Scrap Suit Storage 7228 | -9/Scraptown | Delivered Scrap Shield to a Scientist 7305 | -9/Scraptown | Found Scrap Suit 7452 | -9/Scraptown | Visited Abandonware Association 7470 | -9/Scraptown | Learned abandonware demo "OVRCLOCK.EXE" 7473 | -9/Scraptown | Learned abandonware demo "ERRANTS.EXE" 7473 | -9/Scraptown | Learned abandonware demo "TRNCOAT.EXE" 7505 | -9/Scraptown | Visited Derelict Rescue Squad 7513 | -9/Scraptown | Found DRS Beacon 7545 | -9/Scraptown | Visited DA-N13 Charitable Foundation 7557 | -9/Scraptown | Found DCF Scrap (28 items) 7632 | -9/Scraptown | Visited Modified Component R&D 7777 | -9/Scraptown | Visited Observation Area 7824 | -9/Scraptown | Visited Junk Repository 7875 | -9/Scraptown | Visited LU-1G1's Boring Crew 8254 | -9/Scraptown | Met Optimus 8254 | -9/Scraptown | Accepted into 0bPrime 8333 | -9/Scraptown | Discovered new exit (range 5) 8357 | -9/Scraptown | Entered Factory 8357 | -6/Factory | Accompanied by 8 allies 8357 | -6/Factory | Evolved 8 slots: Propulsion x2, Utility x4, Weapon x2 8358 | -6/Factory | Loaded intel: 56 interactive machine locations 8422 | -6/Factory | Murdered 7 allies 8689 | -6/Factory | Build established: Scrapper 8924 | -6/Factory | Discovered new exit (range 6) 9029 | -6/Factory | Build established: Tank 9466 | -6/Factory | Destroyed 7 combat bots 9704 | -6/Factory | Build established: Scrapper 9735 | -6/Factory | Entered Extension 9840 | -6/Extension | Lost 4 parts (2u2w) 10031 | -6/Extension | Rescued a captive Derelict 10168 | -6/Extension | Build established: Commander-Mutant 10268 | -6/Extension | Destroyed 9 combat bots 10360 | -6/Extension | Rescued a captive Derelict 10363 | -6/Extension | Spotted B-75 Beast 10392 | -6/Extension | Spotted B-75 Beast 10407 | -6/Extension | Destroyed B-75 Beast 10432 | -6/Extension | Allies destroyed B-75 Beast 10435 | -6/Extension | First assault squad dispatched 10531 | -6/Extension | P-60 Hacker assimilated allied R6-OJ1(g) 10579 | -6/Extension | Lost 4 allies 10796 | -6/Extension | Build established: Scavenger-Tank 10987 | -6/Extension | Discovered new exit (range 16) 10989 | -6/Extension | Discovered new exit (range 15) 11056 | -6/Extension | Entered Cetus 11080 | -6/Cetus | Spotted Cetus Guard 11081 | -6/Cetus | Spotted Cetus Guard 11085 | -6/Cetus | Spotted Cetus Guard 11093 | -6/Cetus | Spotted Cetus Guard 11095 | -6/Cetus | Core integrity fell below 50% 11123 | -6/Cetus | Destroyed Cetus Guard 11136 | -6/Cetus | Destroyed Cetus Guard 11167 | -6/Cetus | Core integrity fell below 20% 11172 | -6/Cetus | Destroyed Cetus Guard 11211 | -6/Cetus | Lost 16 parts (1p6n3u6w) 11214 | -6/Cetus | Destroyed Cetus Guard 11507 | -6/Cetus | Build established: Scavenger-Gunner 11521 | -6/Cetus | Discovered new exit (range 37) 11611 | -6/Cetus | Entered Archives 11786 | -6/Archives | Unable to access archive contents 11790 | -6/Archives | Discovered new exit (range 13) 11805 | -6/Archives | Entered Hub_04(d) 11815 | -6/Hub_04(d) | Lost 8 parts (1p3n4u) 11895 | -6/Hub_04(d) | Discovered new exit (range 15) 12002 | -6/Hub_04(d) | Entered Factory 12002 | -5/Factory | Evolved 2 slots: Power x1, Utility x1 12272 | -5/Factory | Build established: Scavenger-Tank 12401 | -5/Factory | Garrison activated, responded to threat 12451 | -5/Factory | Destroyed 7 combat bots 12684 | -5/Factory | Scrapoid reinforcements arrived 13144 | -5/Factory | Build established: Commander-Gunner 13442 | -5/Factory | Lost 4 allies 13469 | -5/Factory | Loaded intel: 7 recycling unit locations 13802 | -5/Factory | First assault squad dispatched 13957 | -5/Factory | Build established: Scavenger-Tank 14249 | -5/Factory | Learned location of Protoforge (-2) 14656 | -5/Factory | Core integrity fell below 50% 15188 | -5/Factory | Central database locked down 15212 | -5/Factory | Build established: Tank 15292 | -5/Factory | Core integrity fell below 20% 15329 | -5/Factory | Lost 6 parts (1n3u2w) 15355 | -5/Factory | Spotted B-75 Beast 15402 | -5/Factory | Destroyed by G-50 Soldier with Heavy Laser Last Messages --------------- FAILED. SECURING TERMINAL." 15357_ System corrupted: Heat flow error (+198). 15366_ ALERT: Hostiles spotted, dispatching reinforcements to Terminal F002. 15376_ U-05 Engineer works on Pressure Siphon. 15377_ Adv. Heat Sink destroyed. 15378_ Acquired Linear Gravjet. 15381_ Adv. Hacking Suite destroyed. 15382_ Acquired 4 matter. 15384_ Recycling Unit disabled. 15391_ Linear Gravjet destroyed. 15397_ Subcomponent Replicator disabled. 15399_ Linear Gravjet destroyed. 15399_ K-01 Serf collects debris. 15400_ Acquired 5 matter. 15400_ YKG5VYF|ARDJ:Y%C5YDRNZ=MF 15400_ Slammed into G-50 Soldier. 15400_ Lrn. Tractor Beam destroyed. 15401_ Slammed into G-50 Soldier. 15402_ K-01 Serf collects debris. Map ----- +----------------------------------------------------+ | ?????????????????????????# #??????????? | | ?????????????????????????# #??????????? | | ?????????????????????????# #??????????? | | ?????????????????????????# "" #??????????? | | ?????????????????????????# "" #??????????? | | ?????????????????????????# "" "" """ #??????????? | | ?????????????????????????# ""T"" """ #??????????? | | ??????????????????????#### """ """ #??????????? | | ??????????????????????# # #??????????? | | ??????????????????????# #######/#########???????? | | ??????????????????????# + ""???? | | ??????????????????????# ####???????? | | ??????????????????????#BB k" " #??????????? | | ??????????????????????#BB" " " " !! #??????????? | | ??????????????????????+ " " !! #??????????? | | ??????????????????????# " !! #??????????? | | ??????????????????????# #########+## | | ??????????????????????# | | ??????????????????????# | | ??????????????????????+ | | ??????????????????????# g | | ??????????????????????# g s | | ??????????????????????###s#"######### | | ????????????????????????# # # | | ????????????????????????# # # | | ????????????????????????#@# # | | ????????????????????????#g# """ # | | ????????????????????????#R# """" * + | | ????????????????????????# # """"" # | | ????????????????????????# # # ###+#### | | ????????????????????????# # # #??????? | | ?????""?????????????????#+########### #??????? | | ?????""?????????????????????????????# #??????? | | ?????Y"?????????????????????????????# #??????? | | ?????""?????????????????????????????# #??????? | | ?????""?????????????????????????????? #??????? | | ????????????????????????????????????? #??????? | | ????????????????????????????????????? #??????? | | ????????????????????????????????????? ??????? | | ????????????????????????????????????? ??????? | | ????????????????????????????????????? ? ?????? | | ????????????????????????????????????? ?????????? | | ?????????????????????????????????????????????????? | | ?????????????????????????????????????????????????? | | ?????????????????????????????????????????????????? | | ?????????????????????????????????????????????????? | | ?????????????????????????????????????????????????? | | ?????????????????????????????????????????????????? | | ?????????????????????????????????????????????????? | | ?????????????????????????????????????????????????? | +----------------------------------------------------+ Best States ------------- Heat Dissipation 140 Energy Generation 33 Energy Capacity 720 Matter Stores 550 Matter Capacity 550 Sight Range 16 Terrain Scan Density 10 Base Temperature (-) 150 Corruption Block 15 Armor Coverage 675 Resistance: KI 20 Core Shielding 20 Power Shielding 33 Utility Shielding 66 Weapon Cycling 30 Phase Shifting 5 Evasion (%) 55 Target Analysis 6 Recoil Reduction 3 Matter Filtering 30 Kinecelleration 40 Offensive Hacking 14 Item Schematics ----------------- None Robot Schematics ------------------ None Fabricated ------------ Nothing Repaired ---------- Nothing Studied --------- Mass Driver | -5/Factory | Hacked Alien Tech Used ----------------- None Achievements -------------- Gunslinger Immobile And Lovin' It Myspace Challenges ------------ None Game ------ Seed FlightDispersalTube Manual? 0 Play Time 02:44:23 Cumulative 93.7 hours Start 2026.08.05 @ 22:09:19 End 2026.08.06 @ 18:05:48 Sessions 4 Manual Loads 0 Difficulty Rogue Special Mode None Game No. 71 Rogue 71 Adventurer 0 Explorer 0 Win Type - Total 1 Types 1/0/0/0/0/0/0/0/0/0 Lore% 34 Gallery% 37 Achievement% 29 Wizard Run 0 Options --------- Layout 1 ASCII 0 Keyboard 0 Movement Mouse Keybinds 0 Fullscreen 2 Font 24/Smallcaps Map View 50x35 Zoom Use 0% Tactical HUD 1 Map Filters NONE Filters NONE Steam 1 RUN: ab079d34-b3ea-43e1-b49e-b0fe7ee1a020